bitfinex-derivatives/quotes_BTCF0:USTF0_20250510
["timestamp","ask_amount","ask_price","bid_price","bid_amount"]
[1746882212451,0.289638,103860.0,103850.0,0.7390565]
[1746882212750,0.289638,103860.0,103850.0,0.84775686]
[1746882212944,0.289638,103860.0,103850.0,0.7390565]
[1746882215051,0.289638,103860.0,103850.0,0.74850347]
[1746882215442,0.39833836,103860.0,103850.0,0.74850347]
[1746882215642,0.289638,103860.0,103850.0,0.74850347]
[1746882216344,0.289638,103860.0,103850.0,0.7390565]
[1746882216544,0.39833836,103860.0,103850.0,0.7390565]
[1746882216939,0.289638,103860.0,103850.0,0.7390565]
[1746882217145,0.39833836,103860.0,103850.0,0.7390565]
[1746882222049,0.289638,103860.0,103850.0,0.7390565]
[1746882222645,0.005,103860.0,103850.0,1.10404495]
[1746882222950,0.005,103860.0,103850.0,1.20404495]
[1746882223152,0.005,103860.0,103850.0,1.26134459]
[1746882223351,0.005,103860.0,103850.0,1.37004495]
[1746882223947,0.005,103860.0,103850.0,1.26134459]
[1746882224144,0.005,103860.0,103850.0,1.37004495]
[1746882227158,0.005,103860.0,103850.0,1.20404495]
[1746882228360,0.005,103860.0,103850.0,1.34438459]
[1746882228547,0.005,103860.0,103850.0,1.45308495]
[1746882229159,0.197538,103860.0,103850.0,1.09534459]
[1746882229360,0.41493872,103860.0,103850.0,0.5382565]
[1746882229661,0.76323836,103860.0,103850.0,0.2763565]
[1746882229860,0.51113872,103860.0,103850.0,0.2763565]
[1746882230052,0.67713872,103860.0,103850.0,0.2763565]
[1746882230252,1.03793872,103860.0,103850.0,0.2763565]
[1746882231260,1.03793872,103860.0,103850.0,0.2430565]
[1746882231563,1.13422672,103860.0,103850.0,0.2230565]
[1746882233451,1.25878672,103860.0,103850.0,0.2230565]
[1746882237167,1.25878672,103860.0,103850.0,0.0305]
[1746882238573,1.16249872,103860.0,103850.0,0.0305]
[1746882245265,0.945098,103860.0,103850.0,0.0305]
[1746882245467,1.16249872,103860.0,103850.0,0.2230565]
[1746882246578,1.05379836,103860.0,103850.0,0.2230565]
[1746882248169,1.16249872,103860.0,103850.0,0.2230565]
[1746882248778,1.16249872,103860.0,103850.0,0.0305]
[1746882248977,1.16249872,103860.0,103850.0,0.2230565]
[1746882250873,1.16249872,103860.0,103850.0,0.2535565]
[1746882254570,0.945098,103860.0,103850.0,0.2535565]
[1746882254773,1.16249872,103860.0,103850.0,0.2535565]
[1746882256176,1.16249872,103860.0,103850.0,0.0305]
[1746882257377,0.1925565,103850.0,103840.0,0.04701184]
[1746882257581,0.1925751,103840.0,103830.0,0.0328]
[1746882257782,0.86687582,103840.0,103830.0,0.0756]
[1746882257982,0.86687582,103840.0,103830.0,0.2681936]
[1746882257983,0.75817546,103840.0,103830.0,0.2681936]
[1746882258182,0.92417546,103840.0,103830.0,0.2681936]
[1746882258485,0.92417546,103840.0,103830.0,0.0756]
[1746882258880,0.56337546,103840.0,103830.0,0.2711936]
[1746882259187,0.92417546,103840.0,103830.0,0.2711936]
[1746882260183,0.92417546,103840.0,103830.0,0.2741936]
[1746882260686,0.92417546,103840.0,103830.0,0.3047936]
[1746882260882,0.93397234,103840.0,103830.0,0.3047936]
[1746882261084,0.92417546,103840.0,103830.0,0.3047936]
[1746882262082,0.92417546,103840.0,103830.0,0.0794]
[1746882262083,1.15727582,103840.0,103830.0,0.0794]
[1746882263386,1.15727582,103840.0,103830.0,0.0764]
[1746882263588,1.15727582,103840.0,103830.0,0.0784]
[1746882264087,1.15727582,103840.0,103830.0,0.0764]
[1746882264788,1.16680238,103840.0,103830.0,0.0664]
[1746882266789,1.16680238,103840.0,103830.0,0.0336]
[1746882267790,1.84830238,103840.0,103830.0,0.0336]
[1746882269678,0.1926307,103810.0,103800.0,0.2407923]
[1746882269882,0.1926307,103810.0,103800.0,0.9350923]
[1746882269883,0.3169107,103810.0,103800.0,0.9350923]
[1746882270084,0.4829107,103810.0,103800.0,0.9350923]
[1746882270879,0.4829107,103810.0,103800.0,0.9390923]
[1746882271085,0.4829107,103810.0,103800.0,0.9721923]
[1746882271789,0.4829107,103810.0,103800.0,0.9761923]
[1746882272086,0.5143107,103810.0,103800.0,0.9761923]
[1746882272288,0.62301106,103810.0,103800.0,0.9761923]
[1746882273482,0.5143107,103810.0,103800.0,0.9761923]
[1746882273683,0.5143107,103810.0,103800.0,0.9721923]
[1746882275392,0.5143107,103810.0,103800.0,0.9681923]
[1746882275594,0.5143107,103810.0,103800.0,0.9691923]
[1746882275794,0.5143107,103810.0,103800.0,0.9701923]
[1746882277291,0.62301106,103810.0,103800.0,0.9701923]
[1746882277691,0.62301106,103810.0,103800.0,0.9220323]
[1746882280394,0.5143107,103810.0,103800.0,0.9220323]
[1746882280592,0.62301106,103810.0,103800.0,0.9220323]
[1746882283400,0.98381106,103810.0,103800.0,0.3686]
[1746882283605,1.04931106,103810.0,103800.0,0.3381]
[1746882283788,1.04931106,103810.0,103800.0,0.3051]
[1746882283789,1.73081106,103810.0,103800.0,0.3051]
[1746882284497,1.83951142,103810.0,103800.0,0.3051]
[1746882284701,1.83951142,103810.0,103800.0,0.272]
[1746882286308,1.73081106,103810.0,103800.0,0.3039]
[1746882287805,1.83951142,103810.0,103800.0,0.3039]
[1746882288202,1.15801142,103810.0,103800.0,0.3039]
[1746882288498,1.16101142,103810.0,103800.0,0.3029]
[1746882288705,1.16301142,103810.0,103800.0,0.3019]
[1746882291201,1.52381142,103810.0,103800.0,0.3019]
[1746882292399,1.41511106,103810.0,103800.0,0.3019]
[1746882292895,1.52381142,103810.0,103800.0,0.3019]
[1746882293098,1.52381142,103810.0,103800.0,0.3346]
[1746882295394,1.52381142,103810.0,103800.0,0.0646]
[1746882298008,1.52381142,103810.0,103800.0,0.0319]
[1746882300909,0.80221142,103810.0,103800.0,0.0319]
[1746882301111,1.52381142,103810.0,103800.0,0.0645]
[1746882303512,1.53935106,103810.0,103800.0,0.0969]
[1746882314417,0.59653106,103810.0,103800.0,0.4677]
[1746882314618,0.72073106,103810.0,103800.0,0.1069]
[1746882314816,0.75403106,103810.0,103800.0,0.1069]
[1746882320919,1.22353142,103810.0,103800.0,0.1069]
[1746882321119,1.17873106,103810.0,103800.0,0.1069]
[1746882321415,1.28743142,103810.0,103800.0,0.0969]
[1746882321825,1.28743142,103810.0,103800.0,0.0326]
[1746882322017,1.28743142,103810.0,103780.0,0.20750374]
[1746882322018,0.1926678,103790.0,103780.0,0.20750374]
[1746882322223,0.59152816,103790.0,103780.0,0.32750374]
[1746882322424,0.62202816,103790.0,103780.0,0.32750374]
[1746882323133,0.62202816,103790.0,103780.0,0.35910374]
[1746882323834,0.62202816,103790.0,103780.0,0.36010374]
[1746882324426,0.62202816,103790.0,103780.0,0.36110374]
[1746882324626,0.65292816,103790.0,103780.0,0.36110374]
[1746882325030,0.65292816,103790.0,103780.0,0.42230374]
[1746882326137,0.65292816,103790.0,103780.0,0.22961734]
[1746882326335,1.01372816,103790.0,103780.0,0.22961734]
[1746882327432,1.02323519,103790.0,103780.0,0.22961734]
[1746882327932,0.1926864,103780.0,103770.0,0.70197955]
[1746882328132,0.33268676,103780.0,103770.0,0.70197955]
[1746882328333,0.49868676,103780.0,103770.0,0.98197955]
[1746882328834,0.49868676,103780.0,103770.0,0.99653654]
[1746882329143,0.49868676,103780.0,103770.0,1.00153654]
[1746882330044,0.3899864,103780.0,103770.0,1.00153654]
[1746882330538,0.3899864,103780.0,103770.0,1.1102369]
[1746882330843,0.7507864,103780.0,103770.0,0.74548605]
[1746882331146,0.7507864,103780.0,103770.0,0.63678569]
[1746882331341,0.7507864,103780.0,103770.0,0.73438569]
[1746882332548,0.7507864,103780.0,103770.0,0.49350839]
[1746882332844,0.7507864,103780.0,103770.0,0.73437589]
[1746882336839,0.7815864,103780.0,103770.0,0.73437589]
[1746882348054,0.8121864,103780.0,103770.0,0.73437589]
[1746882349254,0.92088676,103780.0,103770.0,0.73437589]
[1746882356457,0.92088676,103780.0,103770.0,0.68620069]
[1746882356653,0.8121864,103780.0,103770.0,0.60110995]
[1746882356850,0.92088676,103780.0,103770.0,0.60110995]
[1746882358359,0.8121864,103780.0,103770.0,0.60110995]
[1746882358760,0.4513864,103780.0,103770.0,0.60110995]
[1746882359152,0.4513864,103780.0,103770.0,0.59910995]
[1746882360159,0.4513864,103780.0,103770.0,0.59710995]
[1746882363061,0.4207864,103780.0,103770.0,0.80217263]
[1746882363962,0.4207864,103780.0,103770.0,0.69347227]
[1746882364460,0.4517864,103780.0,103770.0,0.69347227]
[1746882364656,0.56048676,103780.0,103770.0,0.69347227]
[1746882365061,0.4517864,103780.0,103770.0,0.69347227]
[1746882365759,0.92128676,103780.0,103770.0,0.25865337]
[1746882366060,1.02998712,103780.0,103770.0,0.16229105]
[1746882366856,1.15410712,103780.0,103770.0,0.16229105]
[1746882377963,0.9367064,103780.0,103770.0,0.01555699]
[1746882378164,1.15410712,103780.0,103770.0,0.01555699]
[1746882378565,0.9367064,103780.0,103770.0,0.01555699]
[1746882378864,1.15410712,103780.0,103770.0,0.01555699]
[1746882381273,1.15710712,103780.0,103770.0,0.01555699]
[1746882382174,1.15910712,103780.0,103770.0,0.01455699]
[1746882382375,0.192705,103770.0,103760.0,0.2712007]
[1746882382575,0.87770536,103770.0,103760.0,0.3712007]
[1746882383069,1.04370536,103770.0,103760.0,0.3712007]
[1746882383778,1.04570536,103770.0,103760.0,0.4020007]
[1746882384878,1.04570536,103770.0,103760.0,0.3712007]
[1746882385078,1.04570536,103770.0,103760.0,0.32302]
[1746882386581,1.04570536,103770.0,103760.0,0.35572]
[1746882387276,1.04570536,103770.0,103760.0,0.37050326]
[1746882390787,1.05532231,103770.0,103760.0,0.37050326]
[1746882391389,1.04570536,103770.0,103760.0,0.37050326]
[1746882393391,1.04570536,103770.0,103760.0,0.40280326]
[1746882394891,1.05535883,103770.0,103760.0,0.40280326]
[1746882396893,0.69455883,103770.0,103760.0,0.40280326]
[1746882397093,1.05535883,103770.0,103760.0,0.40280326]
[1746882397894,1.05535883,103770.0,103760.0,0.21007976]
[1746882398098,1.05535883,103770.0,103760.0,0.40280326]
[1746882398892,1.04570536,103770.0,103760.0,0.40280326]
[1746882399088,0.937005,103770.0,103760.0,0.40280326]
[1746882399286,1.04570536,103770.0,103760.0,0.40280326]
[1746882402393,0.422205,103770.0,103760.0,0.51150362]
[1746882402592,0.391605,103770.0,103760.0,0.87230362]
[1746882406102,0.391605,103770.0,103760.0,0.76360326]
[1746882408699,0.423505,103770.0,103760.0,0.76360326]
[1746882410501,0.53220536,103770.0,103760.0,0.76360326]
[1746882412801,0.423505,103770.0,103760.0,0.76360326]
[1746882413009,0.53220536,103770.0,103760.0,0.76360326]
[1746882414303,0.56260536,103770.0,103760.0,0.76360326]
[1746882414906,0.56260536,103770.0,103760.0,0.40280326]
[1746882415109,0.56260536,103770.0,103760.0,0.76360326]
[1746882420611,0.56260536,103770.0,103760.0,0.40280326]
[1746882421612,0.92340536,103770.0,103760.0,0.40280326]
[1746882422712,0.814705,103770.0,103760.0,0.40280326]
[1746882423817,0.92340536,103770.0,103760.0,0.40280326]
[1746882424016,0.784305,103770.0,103760.0,0.40280326]
[1746882427316,0.817305,103770.0,103760.0,0.40280326]
[1746882437822,0.456505,103770.0,103760.0,0.40280326]
[1746882438024,0.817305,103770.0,103760.0,0.40280326]
[1746882441227,0.92800536,103770.0,103760.0,0.40280326]
[1746882441824,0.92700536,103770.0,103760.0,0.40280326]
[1746882442018,0.92900536,103770.0,103760.0,0.40280326]
[1746882442826,0.92900536,103770.0,103760.0,0.37050326]
[1746882443521,0.820305,103770.0,103760.0,0.37050326]
[1746882443932,0.92900536,103770.0,103760.0,0.37050326]
[1746882447025,0.56820536,103770.0,103760.0,0.37050326]
[1746882448823,0.459505,103770.0,103760.0,0.37050326]
[1746882449026,0.56820536,103770.0,103760.0,0.37050326]
[1746882457240,0.459505,103770.0,103760.0,0.37050326]
[1746882465541,0.459505,103770.0,103760.0,0.11477976]
[1746882465844,0.92900536,103770.0,103760.0,0.30750326]
[1746882471749,0.56820536,103770.0,103760.0,0.30750326]
[1746882471941,0.92900536,103770.0,103760.0,0.30750326]
[1746882475350,0.92900536,103770.0,103760.0,0.11477976]
[1746882475843,0.1927421,103750.0,103740.0,0.003952]
[1746882476045,0.66224246,103750.0,103740.0,0.3867127]
[1746882476349,0.92354246,103750.0,103740.0,0.3867127]
[1746882476548,0.92354246,103750.0,103740.0,0.40094025]
[1746882477138,0.92354246,103750.0,103740.0,0.40394025]
[1746882477346,0.92354246,103750.0,103740.0,0.40594025]
[1746882480444,0.9384421,103750.0,103740.0,0.40594025]
[1746882480647,1.04714246,103750.0,103740.0,0.46954025]
[1746882482653,0.9384421,103750.0,103740.0,0.46954025]
[1746882484152,0.9384421,103750.0,103740.0,0.50264025]
[1746882487749,0.1992,103750.0,103740.0,0.72004097]
[1746882488053,0.1992,103750.0,103740.0,1.39723115]
[1746882488354,0.0332,103750.0,103740.0,1.28853079]
[1746882489051,0.1992,103750.0,103740.0,1.28853079]
[1746882490053,0.1992,103750.0,103740.0,1.41221079]
[1746882490457,0.1992,103750.0,103740.0,1.52091115]
[1746882498260,0.1992,103750.0,103740.0,1.41221079]
[1746882501167,0.1992,103750.0,103740.0,1.52091115]
[1746882501867,0.1992,103750.0,103740.0,1.41221079]
[1746882502059,0.1992,103750.0,103740.0,1.52091115]
[1746882502869,0.1992,103750.0,103740.0,1.30351043]
[1746882503059,0.2323,103750.0,103740.0,1.52091115]
[1746882505069,0.2323,103750.0,103740.0,1.41221079]
[1746882509272,0.2323,103750.0,103740.0,1.30351043]
[1746882509472,0.2323,103750.0,103740.0,1.41221079]
[1746882510671,0.2323,103750.0,103740.0,1.52091115]
[1746882517084,0.2323,103750.0,103740.0,1.41221079]
[1746882518869,0.2633,103750.0,103740.0,1.41221079]
[1746882520173,0.2633,103750.0,103740.0,1.52091115]
[1746882522077,0.2633,103750.0,103740.0,1.41221079]
[1746882524579,0.2633,103750.0,103740.0,1.52091115]
[1746882526679,0.2633,103750.0,103740.0,1.30351043]
[1746882526981,0.2633,103750.0,103740.0,1.41221079]
[1746882528573,0.2633,103750.0,103740.0,1.52091115]
[1746882530582,0.2633,103750.0,103740.0,1.41221079]
[1746882541489,0.2633,103750.0,103740.0,1.52091115]
[1746882546586,0.2633,103750.0,103740.0,1.30351043]
[1746882546796,0.2633,103750.0,103740.0,1.52091115]
[1746882547692,0.2633,103750.0,103740.0,1.41221079]
[1746882550498,0.2633,103750.0,103740.0,1.05141079]
[1746882550691,0.2633,103750.0,103740.0,1.30351043]
[1746882550892,0.2633,103750.0,103740.0,1.41221079]
[1746882551597,0.2633,103750.0,103740.0,1.30351043]
[1746882551799,0.2633,103750.0,103740.0,1.41221079]
[1746882552001,0.2633,103750.0,103740.0,1.30315043]
[1746882552294,0.2633,103750.0,103740.0,1.41185079]
[1746882556304,0.2633,103750.0,103740.0,1.30315043]
[1746882556493,0.2633,103750.0,103740.0,1.41185079]
[1746882557108,0.2633,103750.0,103740.0,1.05105079]
[1746882557314,0.2633,103750.0,103740.0,1.41185079]
[1746882563913,0.2633,103750.0,103740.0,1.30315043]
[1746882564115,0.2633,103750.0,103740.0,1.41185079]
[1746882566219,0.2633,103750.0,103740.0,1.30315043]
[1746882566515,0.2633,103750.0,103740.0,1.41185079]
[1746882571023,0.2633,103750.0,103740.0,1.05105079]
[1746882571424,0.2633,103750.0,103740.0,1.41185079]
[1746882572025,0.2632,103750.0,103740.0,1.41185079]
[1746882579333,0.2632,103750.0,103740.0,1.05105079]
[1746882579529,0.2632,103750.0,103740.0,1.41185079]
[1746882582021,0.4559421,103750.0,103740.0,1.41185079]
[1746882582224,0.92544246,103750.0,103740.0,0.53363043]
[1746882582530,0.56464246,103750.0,103740.0,0.53363043]
[1746882582730,0.56464246,103750.0,103740.0,0.50233043]
[1746882582921,0.56464246,103750.0,103740.0,0.40594025]
[1746882585728,0.4559421,103750.0,103740.0,0.40594025]
[1746882591935,0.56464246,103750.0,103740.0,0.40594025]
[1746882592838,0.92544246,103750.0,103740.0,0.21317955]
[1746882593029,1.04848246,103750.0,103740.0,0.21317955]
[1746882593539,1.04848246,103750.0,103740.0,0.40594025]
[1746882594741,1.05836843,103750.0,103740.0,0.40594025]
[1746882596438,1.05836843,103750.0,103740.0,0.42049902]
[1746882597041,1.05836843,103750.0,103740.0,0.22773832]
[1746882597240,1.73986843,103750.0,103740.0,0.22773832]
[1746882600241,1.73986843,103750.0,103740.0,0.42049902]
[1746882601543,1.73986843,103750.0,103740.0,0.22773832]
[1746882602145,1.73986843,103750.0,103740.0,0.42049902]
[1746882608648,1.63116807,103750.0,103740.0,0.42049902]
[1746882608848,1.73986843,103750.0,103740.0,0.42049902]
[1746882609244,1.73986843,103750.0,103740.0,0.45239902]
[1746882609437,1.1374421,103750.0,103740.0,0.56109938]
[1746882609642,1.2604021,103750.0,103740.0,0.60874061]
[1746882610147,1.2604021,103750.0,103740.0,0.96954061]
[1746882610344,1.1374421,103750.0,103740.0,0.96954061]
[1746882610649,1.2293621,103750.0,103740.0,0.96954061]
[1746882611045,1.2293621,103750.0,103740.0,0.60874061]
[1746882611240,1.2293621,103750.0,103740.0,0.96954061]
[1746882611645,1.2293621,103750.0,103740.0,0.86084025]
[1746882615349,1.1064421,103750.0,103740.0,0.86084025]
[1746882615548,1.2293621,103750.0,103740.0,0.86084025]
[1746882617450,1.1064421,103750.0,103740.0,0.86084025]
[1746882617643,1.0733421,103750.0,103740.0,1.11593079]
[1746882618252,0.3918421,103750.0,103740.0,1.11593079]
[1746882621155,0.166,103750.0,103740.0,1.61751115]
[1746882621654,0.166,103750.0,103740.0,3.11751115]
[1746882630853,0.1981,103750.0,103740.0,3.11751115]
[1746882632960,0.1981,103750.0,103740.0,3.00881079]
[1746882633161,0.2296,103750.0,103740.0,3.24035115]
[1746882638763,0.2296,103750.0,103740.0,3.24015115]
[1746882649763,0.1981,103750.0,103740.0,3.24015115]
[1746882650263,0.2313,103750.0,103740.0,3.24015115]
[1746882651859,0.2313,103750.0,103740.0,3.24003115]
[1746882652966,0.2313,103750.0,103740.0,3.38778841]
[1746882653367,0.2313,103750.0,103740.0,3.17038769]
[1746882653572,0.2313,103750.0,103740.0,3.38778841]
[1746882654461,0.2313,103750.0,103740.0,2.93938805]
[1746882654662,0.2313,103750.0,103740.0,3.06218805]
[1746882654884,0.2628,103750.0,103740.0,3.06218805]
[1746882655061,0.2628,103750.0,103740.0,3.09218805]
[1746882655260,0.2628,103750.0,103740.0,3.12388805]
[1746882655563,0.2628,103750.0,103740.0,3.23258841]
[1746882655968,0.2628,103750.0,103740.0,3.26288841]
[1746882656369,0.2628,103750.0,103740.0,3.11513115]
[1746882661573,0.2628,103750.0,103740.0,3.11313115]
[1746882662272,0.2628,103750.0,103740.0,3.11013115]
[1746882663169,0.2628,103750.0,103740.0,3.00143079]
[1746882664666,0.2628,103750.0,103740.0,3.14918805]
[1746882671870,0.2628,103750.0,103740.0,1.64918805]
[1746882681790,0.2628,103750.0,103740.0,1.28838805]
[1746882682086,0.2628,103750.0,103740.0,2.00998805]
[1746882686201,0.2628,103750.0,103740.0,2.10998805]
[1746882688608,0.2628,103750.0,103740.0,2.00128769]
[1746882688802,0.2628,103750.0,103740.0,2.10998805]
[1746882689808,0.2628,103750.0,103740.0,2.15998805]
[1746882691106,0.2628,103750.0,103740.0,2.03718805]
[1746882691301,0.2628,103750.0,103740.0,2.15990805]
[1746882692809,0.2628,103750.0,103740.0,1.43830805]
[1746882693003,0.2628,103750.0,103740.0,2.15990805]
[1746882693203,0.2627,103750.0,103740.0,2.15990805]
[1746882695409,0.2627,103750.0,103740.0,2.05120769]
[1746882695711,0.2627,103750.0,103740.0,2.15990805]
[1746882699922,0.2627,103750.0,103740.0,1.43830805]
[1746882700212,0.2627,103750.0,103740.0,2.15990805]
[1746882704717,0.2627,103750.0,103740.0,1.90345043]
[1746882704907,0.2627,103750.0,103740.0,2.01215079]
[1746882711421,0.2627,103750.0,103740.0,1.29055079]
[1746882711622,0.2627,103750.0,103740.0,2.01215079]
[1746882714426,0.2627,103750.0,103740.0,2.15990805]
[1746882716216,0.2627,103750.0,103740.0,2.26860841]
[1746882718630,0.2627,103750.0,103740.0,2.15990805]
[1746882719225,0.2627,103750.0,103740.0,2.26860841]
[1746882719433,0.2312,103750.0,103740.0,2.26860841]
[1746882722033,0.2312,103750.0,103740.0,2.15990805]
[1746882722521,0.2312,103750.0,103740.0,2.26860841]
[1746882723627,0.2312,103750.0,103740.0,2.15990805]
[1746882727536,0.2312,103750.0,103740.0,1.92848769]
[1746882727833,0.2312,103750.0,103740.0,2.05108769]
[1746882729935,0.2634,103750.0,103740.0,2.05108769]
[1746882730536,0.2634,103750.0,103740.0,1.92848769]
[1746882730734,0.2634,103750.0,103740.0,2.05108769]
[1746882731735,0.2634,103750.0,103740.0,1.69028769]
[1746882736937,0.2634,103750.0,103740.0,1.79898805]
[1746882737239,0.56484246,103750.0,103740.0,1.11488769]
[1746882739147,0.56484246,103750.0,103740.0,0.96713043]
[1746882739537,0.4561421,103750.0,103740.0,1.00043043]
[1746882739734,0.2634,103750.0,103740.0,1.00043043]
[1746882740141,0.2634,103750.0,103740.0,1.10913079]
[1746882741041,0.2634,103750.0,103740.0,1.00043043]
[1746882741338,0.4561421,103750.0,103740.0,1.00043043]
[1746882744140,0.56484246,103750.0,103740.0,1.00043043]
[1746882744544,0.4561421,103750.0,103740.0,1.00043043]
[1746882744842,0.56484246,103750.0,103740.0,1.00043043]
[1746882745042,0.4561421,103750.0,103740.0,1.00043043]
[1746882746642,0.4561421,103750.0,103740.0,1.10913079]
[1746882747042,0.4561421,103750.0,103740.0,1.03243043]
[1746882751453,0.4561421,103750.0,103740.0,1.14113079]
[1746882752647,0.4561421,103750.0,103740.0,1.17143079]
[1746882756153,0.4561421,103750.0,103740.0,1.06273043]
[1746882762944,0.56484246,103750.0,103740.0,1.06273043]
[1746882764559,0.4561421,103750.0,103740.0,1.06273043]
[1746882766159,0.4562421,103750.0,103740.0,1.06273043]
[1746882766860,0.4562421,103750.0,103740.0,1.06043043]
[1746882774160,0.2902421,103750.0,103740.0,1.06043043]
[1746882776062,0.4562421,103750.0,103740.0,1.06043043]
[1746882777260,0.2902421,103750.0,103740.0,1.06043043]
[1746882777974,0.2902421,103750.0,103740.0,0.72043043]
[1746882778873,0.39894246,103750.0,103740.0,0.72043043]
[1746882779066,0.2902421,103750.0,103740.0,0.72043043]
[1746882779870,0.2942421,103750.0,103740.0,0.72043043]
[1746882780071,0.2982421,103750.0,103740.0,0.72043043]
[1746882781069,0.2982421,103750.0,103740.0,1.08123043]
[1746882781271,0.2982421,103750.0,103740.0,1.18993079]
[1746882781673,0.2982421,103750.0,103740.0,0.82913079]
[1746882781872,0.2982421,103750.0,103740.0,1.18993079]
[1746882786264,0.2982421,103750.0,103740.0,1.08123043]
[1746882786465,0.2982421,103750.0,103740.0,1.18993079]
[1746882788976,0.2982421,103750.0,103740.0,0.82913079]
[1746882789275,0.2982421,103750.0,103740.0,0.72043043]
[1746882791572,0.2982421,103750.0,103740.0,0.82913079]
[1746882791773,0.0733,103750.0,103740.0,1.52863115]
[1746882791976,0.0401,103750.0,103740.0,1.41993079]
[1746882792778,0.0361,103750.0,103740.0,1.41993079]
[1746882792974,0.0391,103750.0,103740.0,1.41993079]
[1746882793578,0.0361,103750.0,103740.0,1.41993079]
[1746882793882,0.0391,103750.0,103740.0,1.41993079]
[1746882795581,0.0701,103750.0,103740.0,1.41993079]
[1746882795783,0.0701,103750.0,103740.0,1.22993079]
[1746882796682,0.0701,103750.0,103740.0,0.86913079]
[1746882798177,0.37154246,103750.0,103740.0,0.76043043]
[1746882798482,0.21160036,103750.0,103740.0,0.76043043]
[1746882798682,0.40434246,103750.0,103740.0,0.76043043]
[1746882799083,0.2956421,103750.0,103740.0,0.76043043]
[1746882803293,0.2956421,103750.0,103740.0,0.86913079]
[1746882805593,0.2956421,103750.0,103740.0,0.76043043]
[1746882806895,0.40434246,103750.0,103740.0,0.69813043]
[1746882807197,0.57034246,103750.0,103740.0,0.69813043]
[1746882807394,0.4616421,103750.0,103740.0,0.69813043]
[1746882808091,0.40434246,103750.0,103740.0,0.69813043]
[1746882809103,0.57034246,103750.0,103740.0,0.69813043]
[1746882810403,0.4616421,103750.0,103740.0,0.69813043]
[1746882813199,0.2956421,103750.0,103740.0,0.69813043]
[1746882815100,0.4616421,103750.0,103740.0,0.69813043]
[1746882820600,0.4616421,103750.0,103740.0,0.66483043]
[1746882820802,1.05338246,103750.0,103740.0,0.11567955]
[1746882821398,1.05338246,103750.0,103740.0,0.32302526]
[1746882825408,1.73488246,103750.0,103740.0,0.32302526]
[1746882827401,1.6261821,103750.0,103740.0,0.32302526]
[1746882827602,1.73488246,103750.0,103740.0,0.32302526]
[1746882831598,1.73488246,103750.0,103740.0,0.35552526]
[1746882832305,1.61264246,103750.0,103740.0,0.35552526]
[1746882832508,1.73488246,103750.0,103740.0,0.35552526]
[1746882833109,1.56888246,103750.0,103740.0,0.35552526]
[1746882841417,1.56888246,103750.0,103740.0,0.38772526]
[1746882844617,1.20808246,103750.0,103740.0,0.38772526]
[1746882844809,1.56888246,103750.0,103740.0,0.38772526]
[1746882850718,1.56888246,103750.0,103740.0,0.42042526]
[1746882853316,1.44664246,103750.0,103740.0,0.42042526]
[1746882853508,1.56888246,103750.0,103740.0,0.42042526]
[1746882861027,1.20808246,103750.0,103740.0,0.42042526]
[1746882861327,1.56888246,103750.0,103740.0,0.42042526]
[1746882862431,1.20808246,103750.0,103740.0,0.42042526]
[1746882862633,1.56888246,103750.0,103740.0,0.42042526]
[1746882864633,1.56888246,103750.0,103740.0,0.38772526]
[1746882883443,1.56888246,103750.0,103740.0,0.35552526]
[1746882885144,1.56888246,103750.0,103740.0,0.13026456]
[1746882885345,1.56888246,103750.0,103740.0,0.32302526]
[1746882886142,1.56888246,103750.0,103740.0,0.35572526]
[1746882889658,1.56488246,103750.0,103740.0,0.35572526]
[1746882889858,1.56888246,103750.0,103740.0,0.35572526]
[1746882890858,1.56988246,103750.0,103740.0,0.35572526]
[1746882898971,1.4611821,103750.0,103740.0,0.35572526]
[1746882899167,1.56988246,103750.0,103740.0,0.35572526]
[1746882901066,1.56988246,103750.0,103740.0,0.38782526]
[1746882901977,1.4611821,103750.0,103740.0,0.38782526]
[1746882902164,1.4611821,103750.0,103740.0,0.41892526]
[1746882902360,1.56988246,103750.0,103740.0,0.41892526]
[1746882902560,1.4611821,103750.0,103740.0,0.41892526]
[1746882902875,1.56988246,103750.0,103740.0,0.41892526]
[1746882903179,1.4611821,103750.0,103740.0,0.41892526]
[1746882903472,1.56988246,103750.0,103740.0,0.41892526]
[1746882903874,1.4611821,103750.0,103740.0,0.41892526]
[1746882904574,1.56988246,103750.0,103740.0,0.41892526]
[1746882905573,1.56988246,103750.0,103740.0,0.38782526]
[1746882908184,1.57088246,103750.0,103740.0,0.38782526]
[1746882909377,1.56688246,103750.0,103740.0,0.38782526]
[1746882909676,1.57188246,103750.0,103740.0,0.38882526]
[1746882909874,1.57088246,103750.0,103740.0,0.38882526]
[1746882917079,1.4621821,103750.0,103740.0,0.38882526]
[1746882917274,1.57088246,103750.0,103740.0,0.38882526]
[1746882919382,1.57088246,103750.0,103740.0,0.41982526]
[1746882919774,1.4621821,103750.0,103740.0,0.41982526]
[1746882919977,1.57088246,103750.0,103740.0,0.41982526]
[1746882920782,1.21008246,103750.0,103740.0,0.41982526]
[1746882921077,1.57088246,103750.0,103740.0,0.41982526]
[1746882924077,1.4621821,103750.0,103740.0,0.41982526]
[1746882924284,1.57088246,103750.0,103740.0,0.41982526]
[1746882929790,1.21008246,103750.0,103740.0,0.41982526]
[1746882930082,1.57088246,103750.0,103740.0,0.41982526]
[1746882930480,1.57088246,103750.0,103740.0,0.35672526]
[1746882931479,1.4621821,103750.0,103740.0,0.35672526]
[1746882931687,1.57088246,103750.0,103740.0,0.35672526]
[1746882938991,1.57088246,103750.0,103740.0,0.32402526]
[1746882939792,1.4621821,103750.0,103740.0,0.32402526]
[1746882939997,1.57088246,103750.0,103740.0,0.32402526]
[1746882941395,1.57088246,103750.0,103740.0,0.35592526]
[1746882944597,1.4621821,103750.0,103740.0,0.35592526]
[1746882944797,1.57088246,103750.0,103740.0,0.35592526]
[1746882946493,1.4621821,103750.0,103740.0,0.35592526]
[1746882946901,1.57088246,103750.0,103740.0,0.35592526]
[1746882948293,1.57088246,103750.0,103740.0,0.32402526]
[1746882948793,1.57088246,103750.0,103740.0,0.13126456]
[1746882948998,1.57088246,103750.0,103740.0,0.32402526]
[1746882949199,1.73688246,103750.0,103740.0,0.32402526]
[1746882951099,1.57088246,103750.0,103740.0,0.32402526]
[1746882951702,1.4621821,103750.0,103740.0,0.32402526]
[1746882951896,1.57088246,103750.0,103740.0,0.32402526]
[1746882952095,1.57088246,103750.0,103740.0,0.35542526]
[1746882953303,1.57088246,103750.0,103740.0,0.32402526]
[1746882954198,1.73688246,103750.0,103740.0,0.13126456]
[1746882957411,1.05538246,103750.0,103740.0,0.13126456]
[1746882960312,0.9466821,103750.0,103740.0,0.13126456]
[1746882960507,1.05538246,103750.0,103740.0,0.13126456]
[1746882966315,0.88938246,103750.0,103740.0,0.13126456]
[1746882968508,0.88938246,103750.0,103740.0,0.32402526]